Cogmind - Beta 15 @@@ ROGUE MODE // 2025.10.06 @ 15:48:15 Player: DietSnapple Result: Destroyed by S-27 Virus with Autogun Performance ------------- Evolutions (5) 2500 Regions Visited (11) 2200 Robots Destroyed (85) 425 Value Destroyed (1977) 1977 Prototype IDs (6) 120 Alien Tech Used (0) 0 Bonus (300) 300 TOTAL SCORE: 7522 Bonus ------- Aligned with FarCom 300 Cogmind --------- Core Integrity 0/1000 Matter 42/300 Energy 99/100 System Corruption 0% Temperature Cool (0) Movement Core (50) Location -5/Upper Caves Parts ------- > --- POWER (2) -------- (None) > --- PROPULSION (4) --- (None) > --- UTILITY (9) ------ (None) > --- WEAPON (2) ------- (None) > --- INVENTORY (5) ---- Micro Nuclear Core Fission Core Cooled VTOL Module Advanced Weight Redist. System Heavy Missile Launcher Peak State ------------ > --- POWER ------------ Fission Core Light Fission Core > --- PROPULSION ------- Xenon Bombardment Thruster Cooled VTOL Module Nuclear Pulse Thruster > --- UTILITY ---------- Advanced Weight Redist. System Advanced Sensor Array Transmission Jammer Propulsion Shielding Hacking Suite System Shield > --- WEAPON ----------- Cooled Pulse Rifle > --- INVENTORY -------- Micro Nuclear Core Layered Light Armor Plating Improved Shield Generator Improved EM Pulse Cannon Heavy Missile Launcher [Rating: 50] Favorites ----------- Power Light Ion Engine Engine Light Ion Engine Power Core Micro Nuclear Core Propulsion Wheel Wheel Wheel Hover Unit Gravmag System Flight Unit Xenon Bombardment Thruster Utility Hacking Suite Device Seismic Detector Storage Superbattery Processor Signal Interpreter Hackware Hacking Suite Protection Propulsion Shielding Weapon Improved Light Cannon Energy Gun Arc Projector Energy Cannon Improved EM Pulse Cannon Ballistic Gun Assault Rifle Ballistic Cannon Improved Light Cannon Launcher Improved Grenade Launcher Special Weapon Remote Datajack Piercing Weapon Heavy Pick Build | -11 -10 -10 -9 -9 -9 -8 -8 -7 -6 -5 -5 ------- Run | Yrd Mat Min Mat Min Exi Min Mat Fac Fac Fac Upp Slots Evolved 10 | . . . 2 . . . 2 2 2 2 . Power 1 | . . . . . . . . . 1 . . Propulsion 2 | . . . 1 . . . 1 . . . . Utility 7 | . . . 1 . . . 1 2 1 2 . Weapon . | . . . . . . . . . . . . Parts Attached 81 | 6 6 1 8 1 1 1 17 25 13 2 . Power 13 | 1 . 1 2 . . . 3 3 3 . . Engine 6 | 1 . 1 2 . . . 1 1 . . . Core 7 | . . . . . . . 2 2 3 . . Reactor . | . . . . . . . . . . . . Propulsion 24 | 2 3 . 2 1 . 1 6 6 3 . . Treads . | . . . . . . . . . . . . Leg . | . . . . . . . . . . . . Wheel 9 | 2 3 . 2 1 . 1 . . . . . Hover 2 | . . . . . . . . 2 . . . Flight 13 | . . . . . . . 6 4 3 . . Utility 22 | 1 1 . 1 . 1 . 3 8 5 2 . Device 12 | . 1 . . . . . 2 2 5 2 . Storage 2 | 1 . . . . 1 . . . . . . Processor 2 | . . . 1 . . . . 1 . . . Hackware 5 | . . . . . . . 1 4 . . . Protection 1 | . . . . . . . . 1 . . . Artifact . | . . . . . . . . . . . . Weapon 22 | 2 2 . 3 . . . 5 8 2 . . Energy Gun 4 | . 1 . . . . . 2 . 1 . . Energy Cannon 2 | . . . . . . . . 2 . . . Ballistic Gun 6 | 2 1 . . . . . 1 2 . . . Ballistic Cannon 6 | . . . 2 . . . 1 3 . . . Launcher 2 | . . . 1 . . . 1 . . . . Special Weapon 1 | . . . . . . . . 1 . . . Impact Weapon . | . . . . . . . . . . . . Slashing Weapon . | . . . . . . . . . . . . Piercing Weapon 1 | . . . . . . . . . 1 . . Special Melee Weapon . | . . . . . . . . . . . . Unidentified Prototypes 4 | . . . . . 1 . . 2 1 . . Parts Lost 43 | . 4 1 4 . . 3 6 14 8 . 3 Power 4 | . . . 2 . . . 1 . 1 . . Propulsion 17 | . 3 1 1 . . 2 3 5 2 . . Utility 12 | . . . . . . . . 4 5 . 3 Weapon 10 | . 1 . 1 . . 1 2 5 . . . Highest Loss Streak 5 | . 2 1 2 . . 3 5 5 4 . 2 To Critical Strikes . | . . . . . . . . . . . . Average Backups 5 | 1 5 5 6 7 8 8 5 4 4 4 5 Power . | . 1 . . . . . . . . 1 2 Propulsion . | . 2 2 . . 1 . . . . . 1 Utility 2 | . . 1 1 4 4 4 3 2 2 1 1 Weapon 1 | . . 2 3 3 3 3 1 1 1 1 1 Tool/Special . | . . . . . . . . . . . . Unused Backups 12 | . . . 3 1 . . 5 1 . 1 1 Power 1 | . . . . . . . . 1 . . . Propulsion 4 | . . . 2 . . . 2 . . . . Utility 3 | . . . 1 . . . 1 . . 1 . Weapon 4 | . . . . 1 . . 2 . . . 1 Tool/Special . | . . . . . . . . . . . . Average Slot Usage (%) 84 | . 97 94 87 96 100 92 95 76 70 57 6 Engine 5 | . 14 12 7 11 11 11 4 . . . . Core 2 | . . . . . . . 4 2 10 4 . Wheel 10 | . 26 24 25 29 33 29 2 . . . . Hover 1 | . . . . . . . . 3 . . . Flight 12 | . . . . . . . 30 14 18 15 . Device 11 | . 13 14 11 11 5 . 7 11 19 25 2 Storage 9 | . 14 14 11 11 16 22 10 5 . . . Processor 5 | . . . 10 11 11 11 9 4 . . . Hackware 7 | . . . . . . . 8 16 12 5 2 Protection 1 | . . . . . . . . 3 4 . . Energy Gun 2 | . 1 14 4 . . . 8 . 1 . . Ballistic Gun 5 | . 25 14 4 . . . 1 3 . . . Ballistic Cannon 5 | . . . 12 22 22 18 5 3 . . . Peak Build Rating 50 | 6 7 7 12 13 22 22 42 48 50 46 16 Average Rating 26 | 4 6 6 9 12 18 21 38 37 41 40 6 On Entrance 16 | . 6 7 6 12 13 22 19 27 33 36 16 Naked Turns 80 | . . . . . . . . . . . 80 Heaviest Build 28 | 11 13 12 21 21 24 24 24 28 20 16 2 Greatest Support 36 | 26 26 26 36 30 30 30 23 27 28 22 3 Greatest Overweight (x) 4 | . 3 . 1 1 . 1 4 2 . 2 . Average Overweight (x) . | . . . . . . . . . . . . Largest Inventory Capacity 8 | 8 8 8 8 8 8 8 8 5 5 5 5 Average Capacity 6 | 6 8 8 8 8 8 8 5 5 5 5 5 Most Carried 8 | 3 7 7 8 8 8 8 8 5 5 5 5 Average Carried 5 | 1 5 5 6 7 8 7 5 4 4 4 5 Final Capacity 8 | 8 8 8 8 8 8 8 5 5 5 5 5 Final Carried 8 | 3 5 7 7 8 8 8 4 5 5 5 5 Class Distribution -------------------- 32% | Mutant 19% | Sprinter 17% | Scavenger-Mutant 15% | Hacker-Sprinter 9% | Hacker-Mutant Dominant Class ---------------- Mutant | -10/Materials Mutant | -10/Mines Mutant | -9/Materials Scavenger-Mutant | -9/Mines Scavenger-Mutant | -9/Exiles Scavenger-Mutant | -8/Mines Sprinter | -8/Materials Hacker-Sprinter | -7/Factory Hacker-Scout | -6/Factory Ninja | -5/Factory Mutant | -5/Upper Caves Resources | -11 -10 -10 -9 -9 -9 -8 -8 -7 -6 -5 -5 ----------- Run | Yrd Mat Min Mat Min Exi Min Mat Fac Fac Fac Upp Matter Collected 2221 | 132 406 44 530 42 . 43 274 698 52 . . Remotely . | . . . . . . . . . . . . Salvage Created 2022 | . 537 125 373 55 . 31 252 575 74 . . Parts 152 | . 42 16 20 5 . 3 27 35 4 . . Haulers Intercepted . | . . . . . . . . . . . . Recyclers Shooed 3 | . 2 . 1 . . . . . . . . Parts Field Recycled . | . . . . . . . . . . . . Retrieved Matter . | . . . . . . . . . . . . Parts Self-Destructed 1 | . . . . . . . . . . . 1 Prevented . | . . . . . . . . . . . . Kills | -11 -10 -10 -9 -9 -9 -8 -8 -7 -6 -5 -5 ------- Run | Yrd Mat Min Mat Min Exi Min Mat Fac Fac Fac Upp Combat Hostiles Destroyed 53 | . 12 9 9 . . 1 11 8 3 . . Guns 35 | . 12 9 . . . . 6 5 3 . . Cannons 15 | . . . 6 . . 1 5 3 . . . AOE 3 | . . . 3 . . . . . . . . Classes Destroyed 12 | . 7 . 2 . . 1 . 2 . . . Worker 10 | . 1 . 2 2 . . 1 4 . . . Builder 4 | . 1 . 2 1 . . . . . . . Tunneler 3 | . . . 1 1 . . . 1 . . . Recycler 4 | . 1 . 1 . . . . 2 . . . Operator 6 | . 2 . 1 . . . 2 1 . . . Watcher 5 | . 3 . 1 . . . . 1 . . . Swarmer 26 | . 6 9 . . . . 7 1 3 . . Grunt 15 | . 6 . 5 . . . 3 1 . . . Brawler 1 | . . . . . . . . 1 . . . Sentry 4 | . . . 4 . . . . . . . . Hunter 2 | . . . . . . 1 1 . . . . Programmer 5 | . . . . . . . . 5 . . . Best Kill Streak 9 | . 9 6 8 2 . 1 7 5 3 . . Combat Bots Only 7 | . 5 6 3 . . 1 7 3 3 . . Max Kills in Single Turn 3 | . 2 1 1 1 . 1 2 3 1 . . Gunslinging . | . . . . . . . . . . . . Exploded 1 | . . . 1 . . . . . . . . Melee . | . . . . . . . . . . . . Uniques/NPCs Destroyed . | . . . . . . . . . . . . Combat | -11 -10 -10 -9 -9 -9 -8 -8 -7 -6 -5 -5 -------- Run | Yrd Mat Min Mat Min Exi Min Mat Fac Fac Fac Upp Hostile Shots Fired 572 | . 49 44 45 . 1 17 81 159 68 4 104 Missed 235 | . 12 15 12 . 1 4 35 75 37 1 43 Hits 337 | . 37 29 33 . . 13 46 84 31 3 61 Melee 4 | . . . . . . . . 4 . . . Projectile 333 | . 37 29 33 . . 13 46 80 31 3 61 AOE 1 | . . . . . . . . 1 . . . Critical Strikes 12 | . 1 . . . . . . 7 1 . 3 Actively Blocked 1 | . . . . . . . . 1 . . . Damage Taken 5068 | . 414 225 440 . . 231 667 1266 742 81 1002 Core 2183 | . 79 54 96 . . 107 97 442 308 78 922 Absorbed by Shields . | . . . . . . . . . . . . Redirected to Shielding 51 | . . . . . . . . 31 20 . . Regen/Repaired (Parts) 26 | . . . . . . . . 26 . . . Core Remaining (%) 62 | 100 . 46 . . . 49 82 36 63 . . Volleys Fired 264 | . 44 20 56 8 . 3 43 77 13 . . Largest 2 | . 2 2 2 2 . 1 2 2 1 . . Hottest 124 | . 40 60 66 66 . 33 110 124 20 . . Shots Fired 457 | . 85 40 105 16 . 3 83 112 13 . . Gun 275 | . 85 40 8 . . . 49 80 13 . . Cannon 169 | . . . 90 16 . 3 30 30 . . . Launcher 11 | . . . 7 . . . 4 . . . . Special 2 | . . . . . . . . 2 . . . Kinetic 358 | . 85 20 94 16 . 3 47 93 . . . Thermal 37 | . . 20 4 . . . . . 13 . . Explosive 11 | . . . 7 . . . 4 . . . . Electromagnetic 49 | . . . . . . . 32 17 . . . Robot Hit Streak 12 | . 8 4 12 7 . 9 10 7 4 . . Robot Miss Streak 13 | . 3 3 4 1 . . 4 13 3 . . Penetration Max . | . . . . . . . . . . . . Secondary Targets 4 | . 2 2 . . . . . . . . . Max Gunslinging Chain 1 | . 1 1 . . . . . . . . . Shots Hit Robots 263 | . 56 19 52 12 . 3 40 73 7 1 . Core Hits 126 | . 30 9 22 3 . 2 22 34 3 . 1 Critical Kills 3 | . 1 . . . . . . 2 . . . Critical Parts Destroyed 1 | . . . . . . . . 1 . . . Critical Strikes 13 | . 1 . 4 1 . . 1 5 1 . . Burn 1 | . . . . . . . . . 1 . . Destroy 4 | . 1 . . . . . . 3 . . . Blast 8 | . . . 4 1 . . 1 2 . . . Melee Attacks 9 | . . . . . . . . . 7 2 . Impact . | . . . . . . . . . . . . Slashing . | . . . . . . . . . . . . Piercing 9 | . . . . . . . . . 7 2 . Sneak Attacks . | . . . . . . . . . . . . Combat Hostiles . | . . . . . . . . . . . . Follow-up Attacks . | . . . . . . . . . . . . Damage Inflicted 4980 | . 702 221 1178 234 . 47 724 1676 137 56 5 Guns 2339 | . 691 221 56 . . . 253 981 137 . . Cannons 1958 | . . . 913 234 . 47 427 337 . . . Explosions 611 | . . . 209 . . . 44 358 . . . Melee 35 | . . . . . . . . . . 35 . Ramming 37 | . 11 . . . . . . . . 21 5 Kinetic 3816 | . 691 121 926 234 . 47 534 1263 . . . Thermal 324 | . . 100 43 . . . 44 . 137 . . Explosive 209 | . . . 209 . . . . . . . . Electromagnetic 559 | . . . . . . . 146 413 . . . Impact . | . . . . . . . . . . . . Slashing . | . . . . . . . . . . . . Piercing 35 | . . . . . . . . . . 35 . Highest Corruption 17 | . 1 1 . . . . . 17 6 . . Average Corruption 7 | . 1 1 . . . . . 10 1 . . Corruption Purged . | . . . . . . . . . . . . Corruption Blocked . | . . . . . . . . . . . . Effects 76 | . 7 2 . . . . . 67 . . . Message Errors 22 | . 1 . . . . . . 21 . . . Matter Fused 15 | . 1 1 . . . . . 13 . . . Heat Flow Errors 8 | . . . . . . . . 8 . . . Energy Discharges 12 | . 1 . . . . . . 11 . . . Parts Rejected 2 | . 1 1 . . . . . . . . . Data Loss (minor) 3 | . . . . . . . . 3 . . . Data Loss (major) 4 | . 1 . . . . . . 3 . . . Misfires 4 | . 2 . . . . . . 2 . . . Alerts 1 | . . . . . . . . 1 . . . Misdirections 2 | . . . . . . . . 2 . . . Weapon Failures 3 | . . . . . . . . 3 . . . Overload Shots . | . . . . . . . . . . . . Overflow Damage 130 | . . . 12 12 . . 72 34 . . . Projectiles 75 | . . . 12 12 . . 17 34 . . . Explosions 55 | . . . . . . . 55 . . . . Melee . | . . . . . . . . . . . . Knockbacks 23 | . . . 5 4 . 1 7 6 . . . Impact . | . . . . . . . . . . . . Kinetic 21 | . . . 5 4 . 1 6 5 . . . Secondary 2 | . . . . . . . 1 1 . . . Self-Inflicted Damage 193 | . 5 . . . . . 176 . . 10 2 Shots 3 | . . . . . . . 3 . . . . Rammed 7 | . 1 . . . . . . . . 4 2 Targets Rammed 7 | . 1 . . . . . . . . 4 2 Kicked . | . . . . . . . . . . . . Crushed . | . . . . . . . . . . . . Highest Temperature 378 | . 13 20 17 . . 3 378 247 5 . . Average Temperature 78 | . 6 20 8 . . 3 98 75 5 . . Received Heat Transfer 915 | . 138 . 153 . . 81 135 96 60 9 243 Effects 5 | . . . . . . . 5 . . . . Shutdowns 1 | . . . . . . . 1 . . . . Energy Bleed 1 | . . . . . . . 1 . . . . Interference 3 | . . . . . . . 3 . . . . Siege Activations . | . . . . . . . . . . . . Martial Activations . | . . . . . . . . . . . . Shielding Activations . | . . . . . . . . . . . . Robots Disrupted . | . . . . . . . . . . . . Combat Hostiles . | . . . . . . . . . . . . Robots Corrupted . | . . . . . . . . . . . . Combat Hostiles . | . . . . . . . . . . . . Parts Fried 5 | . . . . . . . 2 3 . . . Impact Corruptions . | . . . . . . . . . . . . Robots Melted . | . . . . . . . . . . . . Combat Hostiles . | . . . . . . . . . . . . Parts Melted 3 | . . 1 . . . . . . 2 . . Heat Transferred 708 | . . 225 100 . . . 50 . 333 . . Parts Sabotaged . | . . . . . . . . . . . . Parts Stolen . | . . . . . . . . . . . . Parts Stripped . | . . . . . . . . . . . . Power Chain Reactions 1 | . . . . . . . . 1 . . . Alert | -11 -10 -10 -9 -9 -9 -8 -8 -7 -6 -5 -5 ------- Run | Yrd Mat Min Mat Min Exi Min Mat Fac Fac Fac Upp Maximum Alert Level 1 | . . . . . . . . 1 . . . Low Security (%) 83 | 100 100 100 100 100 . 100 100 51 100 100 . Level 1 16 | . . . . . . . . 48 . . . Level 2 . | . . . . . . . . . . . . Level 3 . | . . . . . . . . . . . . Level 4 . | . . . . . . . . . . . . Level 5 . | . . . . . . . . . . . . High Security . | . . . . . . . . . . . . Max Security . | . . . . . . . . . . . . Peak Influence 364 | . 136 145 136 48 . 75 157 364 172 76 . Initial 172 | . . 9 44 43 . . 21 28 172 71 . Average 79 | . 40 83 71 10 . 22 45 133 122 30 . Influence Increases 3117 | . 382 225 387 22 . 165 436 813 235 17 435 Destroy 0b10 Robot/C 1060 | . 240 180 180 . . 20 220 160 60 . . Destroy 0b10 Robot/NC 160 | . 40 . 40 20 . . 15 45 . . . Destroy Leader 250 | . 46 30 62 . . 10 40 52 10 . . Successful Hack 140 | . 11 . 16 . . . 30 71 12 . . Disable Machine 240 | . . . 15 . . . 45 165 15 . . Destroy Structure 97 | . . . 29 2 . . 56 5 3 2 . Partial Spotted 120 | . . . 15 . . 15 15 30 30 15 . Lose Combat Pursuer 1050 | . 45 15 30 . . 120 15 285 105 . 435 Influence Decreases 2767 | . 357 135 389 135 . 110 427 525 440 164 85 Entered New Map 483 | . . 16 71 70 . . 34 36 180 76 . Time Decay 1917 | . 320 109 278 65 . 80 333 399 180 88 65 Lost Part 367 | . 37 10 40 . . 30 60 90 80 . 20 Squads Dispatched 27 | . 2 . 3 . . . 5 15 2 . . Investigation 13 | . 1 . 1 . . . 3 7 1 . . Extermination 6 | . . . . . . . . 6 . . . Reinforcement 8 | . 1 . 2 . . . 2 2 1 . . Assault . | . . . . . . . . . . . . Garrison . | . . . . . . . . . . . . Intercept . | . . . . . . . . . . . . Searches Triggered . | . . . . . . . . . . . . Construction Impeded 1 | . . . 1 . . . . . . . . Haulers Reinforced . | . . . . . . . . . . . . Active Scanning Responses . | . . . . . . . . . . . . Cargo Convoy Interrupts . | . . . . . . . . . . . . Stealth | -11 -10 -10 -9 -9 -9 -8 -8 -7 -6 -5 -5 --------- Run | Yrd Mat Min Mat Min Exi Min Mat Fac Fac Fac Upp Distress Signals 5 | . 2 . 2 . . . . . . 1 . Communications Jammed . | . . . . . . . . . . . . Distress Signals . | . . . . . . . . . . . . Times Spotted 168 | . 21 10 22 . 1 8 21 35 14 5 31 Peak Tracking Total 14 | . 6 3 6 . 2 6 5 5 6 2 14 Tactical Retreats 31 | . 2 1 1 . . 4 3 10 4 . 6 Traps | -11 -10 -10 -9 -9 -9 -8 -8 -7 -6 -5 -5 ------- Run | Yrd Mat Min Mat Min Exi Min Mat Fac Fac Fac Upp Traps Triggered 11 | . 2 . . . . . 1 4 1 3 . Indirectly . | . . . . . . . . . . . . Trap Hack Attempts . | . . . . . . . . . . . . Triggered . | . . . . . . . . . . . . Disarmed . | . . . . . . . . . . . . Reprogrammed . | . . . . . . . . . . . . Reused . | . . . . . . . . . . . . Traps Extracted . | . . . . . . . . . . . . Installed . | . . . . . . . . . . . . Triggered . | . . . . . . . . . . . . Machines | -11 -10 -10 -9 -9 -9 -8 -8 -7 -6 -5 -5 ---------- Run | Yrd Mat Min Mat Min Exi Min Mat Fac Fac Fac Upp Machines Disabled 16 | . . . 1 . . . 3 11 1 . . Max in Single Turn 4 | . . . 1 . . . 2 4 1 . . Machines Repaired . | . . . . . . . . . . . . Machines Dismantled . | . . . . . . . . . . . . Machines Sabotaged . | . . . . . . . . . . . . Overloaded Fab Kills . | . . . . . . . . . . . . Hacking | -11 -10 -10 -9 -9 -9 -8 -8 -7 -6 -5 -5 --------- Run | Yrd Mat Min Mat Min Exi Min Mat Fac Fac Fac Upp Machines Accessed 30 | . 6 . 3 . . . 4 13 3 1 . Terminals 24 | . 6 . 3 . . . 4 8 2 1 . Fabricators 1 | . . . . . . . . 1 . . . Repair Stations 2 | . . . . . . . . 2 . . . Recycling Units 1 | . . . . . . . . 1 . . . Scanalyzers 1 | . . . . . . . . 1 . . . Garrison Access 1 | . . . . . . . . . 1 . . Total Hacks 86 | . 15 . 9 . . . 16 36 7 3 . Successful 45 | . 6 . 8 . . . 11 18 1 1 . Failed 41 | . 9 . 1 . . . 5 18 6 2 . Catastrophic 8 | . 1 . . . . . 2 4 1 . . Database Lockouts . | . . . . . . . . . . . . Manual 65 | . 14 . 8 . 2 . 12 23 3 3 . Terminals 74 | . 15 . 9 . . . 16 25 6 3 . Fabricators 1 | . . . . . . . . 1 . . . Repair Stations 7 | . . . . . . . . 7 . . . Recycling Units 1 | . . . . . . . . 1 . . . Scanalyzers 2 | . . . . . . . . 2 . . . Garrison Access 1 | . . . . . . . . . 1 . . Terminal Hacks 17 | . 2 . 2 . . . 6 7 . . . Record 3 | . . . . . . . 3 . . . . Prototype ID Bank 1 | . . . . . . . . 1 . . . Open DSF 1 | . . . . . . . . 1 . . . Level Access Points 1 | . . . . . . . . 1 . . . Branch Access Points 3 | . 1 . 1 . . . . 1 . . . Terminal Index 2 | . . . . . . . 1 1 . . . Scanalyzer Index 1 | . . . . . . . . 1 . . . Alert Level 1 | . . . . . . . . 1 . . . Locate Traps 1 | . . . 1 . . . . . . . . Hauler Manifests 1 | . 1 . . . . . . . . . . Registered Components 1 | . . . . . . . 1 . . . . Zone Layout 1 | . . . . . . . 1 . . . . Fabricator Hacks 1 | . . . . . . . . 1 . . . Network Status 1 | . . . . . . . . 1 . . . Repair Station Hacks 4 | . . . . . . . . 4 . . . Scan Component 3 | . . . . . . . . 3 . . . Repair 1 | . . . . . . . . 1 . . . Recycling Unit Hacks 1 | . . . . . . . . 1 . . . Report Inventory 1 | . . . . . . . . 1 . . . Scanalyzer 2 | . . . . . . . . 2 . . . Insert Component 1 | . . . . . . . . 1 . . . Analyze 1 | . . . . . . . . 1 . . . Garrison Access Hacks . | . . . . . . . . . . . . Unauthorized Hacks 20 | . 4 . 6 . . . 5 3 1 1 . Terminals 20 | . 4 . 6 . . . 5 3 1 1 . Track 2 | . . . 2 . . . . . . . . Botnet 14 | . 2 . 3 . . . 4 3 1 1 . Operators 4 | . 2 . 1 . . . 1 . . . . Fabricators . | . . . . . . . . . . . . Repair Stations . | . . . . . . . . . . . . Recycling Units . | . . . . . . . . . . . . Scanalyzers . | . . . . . . . . . . . . Garrison Access . | . . . . . . . . . . . . Data Cores Recovered . | . . . . . . . . . . . . Used . | . . . . . . . . . . . . Hacking Detections 22 | . 4 . 1 . . . 3 10 3 1 . Full Trace Events 13 | . 2 . 1 . . . 3 6 1 . . Feedback Events 3 | . . . . . . . . 2 1 . . Corruption 2 | . . . . . . . . 1 1 . . Hackware Fried 1 | . . . . . . . . 1 . . . Feedback Blocked . | . . . . . . . . . . . . Robot Schematics Acquired . | . . . . . . . . . . . . Robots Built . | . . . . . . . . . . . . Authchips . | . . . . . . . . . . . . Time . | . . . . . . . . . . . . Total Robot Build Rating . | . . . . . . . . . . . . Part Schematics Acquired 1 | . . . . . . . . 1 . . . Parts Built . | . . . . . . . . . . . . Authchips . | . . . . . . . . . . . . Time . | . . . . . . . . . . . . Total Part Build Rating . | . . . . . . . . . . . . Parts Repaired 1 | . . . . . . . . 1 . . . Time 44 | . . . . . . . . 44 . . . Parts Recycled . | . . . . . . . . . . . . Recycled Matter . | . . . . . . . . . . . . Retrieved Matter . | . . . . . . . . . . . . Retrieved Components . | . . . . . . . . . . . . Parts Scanalyzed 1 | . . . . . . . . 1 . . . Part Schematics Acquired 1 | . . . . . . . . 1 . . . Parts Damaged . | . . . . . . . . . . . . Bothacking | -11 -10 -10 -9 -9 -9 -8 -8 -7 -6 -5 -5 ------------ Run | Yrd Mat Min Mat Min Exi Min Mat Fac Fac Fac Upp Used RIF Installer . | . . . . . . . . . . . . Robots Hacked 1 | . . . . . . . . 1 . . . Non-combat . | . . . . . . . . . . . . Combat 1 | . . . . . . . . 1 . . . Robot Hacks Applied 1 | . . . . . . . . 1 . . . parse_system 1 | . . . . . . . . 1 . . . Relay Couplers Released . | . . . . . . . . . . . . Fabnet Peak Effective % . | . . . . . . . . . . . . Robots Rewired . | . . . . . . . . . . . . Allies Hacked . | . . . . . . . . . . . . Hacks Repelled . | . . . . . . . . . . . . Allies | -11 -10 -10 -9 -9 -9 -8 -8 -7 -6 -5 -5 -------- Run | Yrd Mat Min Mat Min Exi Min Mat Fac Fac Fac Upp Total Allies . | . . . . . . . . . . . . Largest Group . | . . . . . . . . . . . . Highest-Rated Group . | . . . . . . . . . . . . Highest-Rated Ally . | . . . . . . . . . . . . Total Orders . | . . . . . . . . . . . . Ally Attacks . | . . . . . . . . . . . . Total Damage . | . . . . . . . . . . . . Kills . | . . . . . . . . . . . . Allies Corrupted . | . . . . . . . . . . . . Allies Melted . | . . . . . . . . . . . . Intel | -11 -10 -10 -9 -9 -9 -8 -8 -7 -6 -5 -5 ------- Run | Yrd Mat Min Mat Min Exi Min Mat Fac Fac Fac Upp Active Infowar (turns) 4391 | . 887 266 771 291 128 . 1230 207 366 245 . Sensors 405 | . . . . . . . . . 160 245 . Terrain 295 | . . . . . . . . . 71 224 . Seismic 2343 | . 887 266 771 291 128 . . . . . . Jamming 440 | . . . . . . . . 207 228 5 . ECM 1318 | . . . . . . . 1230 . 88 . . Robot Analysis Total . | . . . . . . . . . . . . Derelict Logs Recovered 5 | . . 2 . 2 . . . . . . 1 Drone Launches . | . . . . . . . . . . . . Drone Recoveries . | . . . . . . . . . . . . Exploration | -11 -10 -10 -9 -9 -9 -8 -8 -7 -6 -5 -5 ------------- Run | Yrd Mat Min Mat Min Exi Min Mat Fac Fac Fac Upp Turns Passed 7545 | 59 926 266 771 291 295 269 1452 2406 368 264 178 Spaces Moved 9588 | 53 710 220 632 312 366 326 1084 4330 921 283 351 Core 862 | 1 6 . . . . . . 486 . 18 351 Treads . | . . . . . . . . . . . . Legs . | . . . . . . . . . . . . Wheels 2733 | 52 704 220 632 312 366 326 121 . . . . Hover 690 | . . . . . . . . 690 . . . Flight 5303 | . . . . . . . 963 3154 921 265 . Fastest Speed 27 | 50 90 90 80 80 80 80 28 30 27 29 50 Average Speed 50 | 90 91 92 90 83 80 80 36 37 31 39 50 Slowest Speed 355 | 100 200 100 100 95 80 95 355 180 34 195 50 Overloaded Moves . | . . . . . . . . . . . . Propulsion Burnouts . | . . . . . . . . . . . . Robots Hopped 33 | . . . . . . . 12 17 4 . . Potential Cave-ins 6 | . . . . . . . . . 6 . . Cave-ins Triggered 1 | . . . . . . . . . 1 . . Exploration Rate (%) 42 | 4 73 51 33 58 62 76 46 42 20 6 41 Regions Visited 11 Branch Regions 5 Pre-discovered Areas . | . . . . . . . . . . . . Known Exits Taken 7 | . 1 . 1 1 1 1 1 1 . . . Unknown Exits Taken 4 | 1 . 1 . . . . . . 1 1 . Scrap Searched 1 | . . . . . . 1 . . . . . Spaces Dug 64 | . . . 3 . . . 53 . 7 1 . Terrain Destroyed 139 | . . . 37 2 . . 88 4 7 1 . Melee 8 | . . . . . . . . . 7 1 . Projectile 24 | . . . 9 2 . . 9 4 . . . AOE 107 | . . . 28 . . . 79 . . . . Terrain Rammed . | . . . . . . . . . . . . Walls Destroyed . | . . . . . . . . . . . . Machines Disabled . | . . . . . . . . . . . . Actions | -11 -10 -10 -9 -9 -9 -8 -8 -7 -6 -5 -5 --------- Run | Yrd Mat Min Mat Min Exi Min Mat Fac Fac Fac Upp Total 11761 | 61 908 243 729 326 367 330 2052 4995 965 432 353 Wait 1716 | . 139 . 20 2 . . 888 529 5 133 . Move 9511 | 52 709 219 631 311 365 325 1059 4295 912 282 351 Hop 33 | . . . . . . . 12 17 4 . . Pick Up 55 | 3 7 3 8 3 . 1 12 12 2 4 . Fast Attach 43 | 6 . . 3 . 1 . 5 17 8 3 . Attach 42 | . 6 1 5 1 . 1 10 13 5 . . Detach 14 | . . . 1 . . . 2 8 3 . . Swap 10 | . 2 . . . . . 4 2 2 . . Drop 44 | . . . 5 1 1 . 17 12 4 4 . Fire 264 | . 44 20 56 8 . 3 43 77 13 . . Melee 9 | . . . . . . . . . 7 2 . Ram 7 | . 1 . . . . . . . . 4 2 Kick . | . . . . . . . . . . . . Crush . | . . . . . . . . . . . . Escape Stasis 13 | . . . . . . . . 13 . . . Rewire . | . . . . . . . . . . . . Trap . | . . . . . . . . . . . . Miscellaneous . | . . . . . . . . . . . . Route ------- -11/Scrapyard -10/Materials (discovered 3 exits: *Mat x2 / *Min) -10/Mines -9/Materials (discovered 5 exits: *Mat / *Min x2 / Sto x2) -9/Mines (discovered 3 exits: *Mat x2 / *Exi) -9/Exiles -8/Mines -8/Materials (discovered 2 exits: *Fac x2) -7/Factory (discovered 6 exits: *Fac x4 / *Low x2) -6/Factory (discovered 2 exits: *Fac x2) -5/Factory -5/Upper Caves History --------- Turn | Location | Event 29 | -11/Scrapyard | Discovered new exit (range 16) 60 | -11/Scrapyard | Entered Materials 310 | -10/Materials | Build established: Mutant 444 | -10/Materials | Discovered new exit (range 6) 552 | -10/Materials | Discovered new exit (range 11) 829 | -10/Materials | Identified exit to Mines 849 | -10/Materials | Discovered new exit (range 12) 986 | -10/Materials | Entered Mines 1014 | -10/Mines | Learned Materials terminal intel 1028 | -10/Mines | Learned Materials interactive machine intel 1114 | -10/Mines | Assembled infested the area 1191 | -10/Mines | Core integrity fell below 50% 1208 | -10/Mines | Discovered new exit (range 12) 1252 | -10/Mines | Entered Materials 1252 | -9/Materials | Evolved 2 slots: Propulsion x1, Utility x1 1253 | -9/Materials | Loaded intel: 18 interactive machine locations 1254 | -9/Materials | Loaded intel: 12 terminal locations 1763 | -9/Materials | Identified exit to Mines 1763 | -9/Materials | Identified exit to Storage 1885 | -9/Materials | Discovered new exit (range 13) 2023 | -9/Materials | Entered Mines 2033 | -9/Mines | Identified exit to Exiles 2046 | -9/Mines | Met a Derelict bent on vengeance 2135 | -9/Mines | Received a Rocket Launcher from a helpful Derelict 2210 | -9/Mines | Learned location of 1 exit from Materials 2229 | -9/Mines | A weapon hastily lodged in a ceiling crevice suddenly fell to the ground 2276 | -9/Mines | Discovered new exit (range 15) 2300 | -9/Mines | Discovered new exit (range 10) 2308 | -9/Mines | Deemed a non-threat by the Exiles lab entrance 2314 | -9/Mines | Entered Exiles 2344 | -9/Exiles | Met 8R-AWN 2363 | -9/Exiles | Met EX-HEX 2395 | -9/Exiles | Met EX-BIN 2401 | -9/Exiles | Build established: Scavenger-Mutant 2409 | -9/Exiles | Aligned with FarCom system 2410 | -9/Exiles | Given EX-Vault access code 2434 | -9/Exiles | Opened EX-Vault 2443 | -9/Exiles | Found Prototype Storage 2443 | -9/Exiles | Identified Superbattery 2462 | -9/Exiles | Warned to stay clear of 0b10 Research branches 2469 | -9/Exiles | Exiles lab attacked by MAIN.C 2598 | -9/Exiles | Discovered new exit (range 10) 2608 | -9/Exiles | Identified exit to Mines 2609 | -9/Exiles | Left Exiles lab with Superbattery 2609 | -9/Exiles | Entered Mines 2800 | -8/Mines | Core integrity fell below 50% 2826 | -8/Mines | Lost 3 parts (2n1w) 2866 | -8/Mines | Discovered new exit (range 11) 2877 | -8/Mines | Identified exit to Materials 2878 | -8/Mines | Entered Materials 2878 | -8/Materials | Evolved 2 slots: Propulsion x1, Utility x1 2879 | -8/Materials | Identified exit to Factory 3343 | -8/Materials | Build established: Sprinter 3609 | -8/Materials | Discovered exit to Factory (range 12) 3725 | -8/Materials | Destroyed 7 combat bots 4330 | -8/Materials | Entered Factory 4330 | -7/Factory | Evolved 2 slots: Utility x2 4342 | -7/Factory | Lost 5 parts (1p3n1w) 4460 | -7/Factory | Discovered new exit (range 14) 4556 | -7/Factory | Repaired Xenon Bombardment Thruster 4634 | -7/Factory | Build established: Hacker-Sprinter 4897 | -7/Factory | Lost 5 parts (3n2w) 5093 | -7/Factory | Build established: Hacker-Mutant 5337 | -7/Factory | Core integrity fell below 50% 5490 | -7/Factory | System corruption reached 10% 5693 | -7/Factory | Build established: Scavenger-Mutant 6425 | -7/Factory | Build established: Hacker-Sprinter 6618 | -7/Factory | Hacking Suite fried by hacking feedback 6672 | -7/Factory | Discovered new exit (range 6) 6710 | -7/Factory | Identified exit to Lower Caves 6710 | -7/Factory | Identified exit to Factory 6736 | -7/Factory | Entered another Factory area 6736 | -6/Factory | Evolved 2 slots: Power x1, Utility x1 6925 | -6/Factory | Discovered new exit (range 6) 7040 | -6/Factory | Lost 4 parts (1p1n2u) 7094 | -6/Factory | Crushed by falling debris 7094 | -6/Factory | Discovered new exit (range 12) 7104 | -6/Factory | Entered another Factory area 7104 | -5/Factory | Evolved 2 slots: Utility x2 7363 | -5/Factory | Discovered new exit (range 5) 7368 | -5/Factory | Entered Upper Caves 7370 | -5/Upper Caves | Attracted the attention of an 0b10 checkpoint 7405 | -5/Upper Caves | Attracted the attention of an 0b10 base 7447 | -5/Upper Caves | Core integrity fell below 50% 7454 | -5/Upper Caves | Learned 8 Factory zone layouts 7541 | -5/Upper Caves | Core integrity fell below 20% 7546 | -5/Upper Caves | Destroyed by S-27 Virus with Autogun Last Messages --------------- 07366_ Destabilizing: Short circuit. 07367_ Penetrated by Slug. LOCATION=UNKNOWN GOAL=ESCAPE 07369_ Slug penetrates Wall. 07370_ Y-64 Sentinel: "INTERCEPTING UNREGISTERED DERELICT." 07372_ Critical hit (Burn: +37). 07374_ Adv. Terrain Scanner destroyed. 07404_ G-50 Soldier springs to life. 07404_ S-27 Virus destroyed. 07405_ G-50 Soldier springs to life. 07426_ C-30 ARC bursts open, deploying its payload. 07426_ B-60 Warrior unfolds itself. 07426_ G-50 Soldier unfolds itself. 07437_ Broken Imp. Transmission Jammer destroyed. 07440_ Critical hit (Burn: +37). 07454_ Acquired derelict log, extracted data. Data stored: Factory zone layouts (x8). 07466_ Hacking Suite destroyed. 07500_ Slammed into S-27 Virus. Map ----- +----------------------------------------------------+ | | | ?????????????????????????????????????????????????? | | ?????????????????????????????????????????????????? | | ?????????????????????????????????????????????????? | | ?????????????????????????????????????????????????? | | ?????????????????????????????????????????????????? | | ?????????????????????????????????????????????????? | | ?????????????????????????????????????????????????? | | ?????????????????????????????????????????????????? | | ?????????????????????????????????????????????????? | | ?????????????????????????????????????????????????? | | ?????????????????????????????????????????????????? | | ?????????????????????????????????????????????????? | | ?????????????????????????????????????????????????? | | ?????????????????????????????????????????????????? | | ????????????????????????????####??##########?????? | | ???????????????????????????## #### ####### | | ???????????????????????????# ## | | ???????????????????????????# | | ??????????????????????????## s s ### #### | | ??????????????????????????# s s #?## ##??# | | ?????????????????????????## s #??## #####???# | | ????????????????????????## ##???# #?#????## | | ????????????????????????# ###????# ### ??# | | ???????????????????????## #?????# ## | | ???????????????????????# @ #????? | | ???????????????? ####?????? ##### | | ???????????????# ##???????? #???# ## | | ???????????????####### #????????? ????##??? | | ?????????????????????# ????????? #???????## | | ????????????????????# ???????? #???????## | | ??????????????????? ####??????##???????## | | ????????????????? # ##??????????????????# | | ????????????????# ##### ##???????????????????# | | ???????????????# ?????# ?????????????????????# | | ??????????????? ??????# ????????????###??????## | | ??????????????????????# ???????????## ##?###### | | ?????????????????????? ?????????### ### | | ?????????????????????? ????????## | | ??????????????????????###???????## ### | | ???????????????????????????????## #### ### | | ???????????????????????????????# #?## ## | | ??????????????????????????????# #?# ### | | ?????????????????????????????# #?# #?# | | ????????????????????????????# ###?## ## #?? | | ???????????????????????????# ##????# ## ### | | ???????????????????????????### #??????# ## | | ?????????????????????????????##???????# | | ??????????????????????????????????????# | | ?????????????????????????????????????## | +----------------------------------------------------+ Best States ------------- Heat Dissipation 40 Energy Generation 32 Energy Capacity 1765 Matter Stores 300 Matter Capacity 300 Sight Range 16 Robot Scan Range 16 Terrain Scan Range 20 Terrain Scan Density 10 ECM Strength 2 Jamming Range 14 Power Amplification 20 Additional Mass Support 9 Propulsion Shielding 33 Evasion (%) 64 Target Analysis 5 Offensive Hacking 20 Defensive Hacking 10 Item Schematics ----------------- ECM Suite | -7/Factory | Scanalyzed Robot Schematics ------------------ None Fabricated ------------ Nothing Repaired ---------- Xenon Bombardment Thruster | 13% | -7/Factory Alien Tech Used ----------------- None Achievements -------------- Novice Programmer Party Time Challenges ------------ None Game ------ Seed HardlightChipThermoblaster Manual? 0 Play Time 01:23:04 Cumulative 14.8 hours Start 2025.10.06 @ 14:19:35 End 2025.10.06 @ 15:48:15 Sessions 1 Manual Loads 0 Difficulty Rogue Special Mode None Game No. 42 Rogue 35 Adventurer 7 Explorer 0 Win Type - Total 0 Types 0/0/0/0/0/0/0/0/0/0 Lore% 3 Gallery% 17 Achievement% 16 Wizard Run 0 Options --------- Layout 1 ASCII 0 Keyboard 1 Movement Vi Keybinds 0 Fullscreen 1 Font 24/Smallcaps Map View 76x35 Zoom Use 0% Tactical HUD 1 Map Filters NONE Filters NONE Steam 1 RUN: 418a74d4-1184-45dc-ab91-2111df7ecac8